bitfinex/quotes_SOLUSD_20240906
["timestamp","ask_amount","ask_price","bid_price","bid_amount"]
[1725663527086,1.99887657,125.12,125.07,12.54759028]
[1725663528981,45.0,125.13,125.07,12.54759028]
[1725663529383,46.99891452,125.14,125.07,12.54759028]
[1725663531778,46.99891452,125.14,125.09,12.54759028]
[1725663531987,45.0,125.14,125.09,12.54759028]
[1725663532797,6.3814,125.17,125.09,28.81139028]
[1725663533283,8.3798181,125.17,125.09,28.81139028]
[1725663533679,1.9984181,125.17,125.09,28.81139028]
[1725663533874,1.9984181,125.17,125.11,12.54759028]
[1725663534095,46.9984181,125.17,125.11,12.54759028]
[1725663535588,46.9984181,125.17,125.09,22.8892]
[1725663535791,6.3814,125.16,125.06,28.81139028]
[1725663535994,71.08901843,125.15,125.06,28.81139028]
[1725663536289,15.0499,125.14,125.06,28.81139028]
[1725663536491,46.99913708,125.13,125.06,28.81139028]
[1725663536691,1.99913708,125.12,125.02,22.8892]
[1725663536877,1.99913708,125.12,125.04,12.54759028]
[1725663540797,1.99913708,125.12,125.06,12.54759028]
[1725663542572,1.99913708,125.12,125.02,22.8892]
[1725663542898,1.99913708,125.12,125.05,12.54759028]
[1725663549296,1.99913708,125.12,125.02,22.8892]
[1725663549501,1.99913708,125.12,125.05,12.54759028]
[1725663553797,1.99913708,125.12,125.02,32.4140668]
[1725663553995,1.99913708,125.12,125.05,12.54759028]
[1725663555512,8.60103708,125.12,125.05,12.54759028]
[1725663555808,45.0,125.11,125.05,12.54759028]
[1725663555982,1.99924604,125.1,125.05,12.54759028]
[1725663556184,1.99924684,125.09,125.05,12.54759028]
[1725663562321,1.99936078,125.1,125.05,12.54759028]
[1725663562808,46.99934266,125.11,125.05,12.54759028]
[1725663576494,45.0,125.11,125.07,12.54759028]
[1725663577319,1.99924124,125.13,125.07,12.54759028]
[1725663577707,1.99889693,125.12,125.07,12.54759028]
[1725663578296,1.99889471,125.13,125.07,12.54759028]
[1725663578495,17.0487949,125.14,125.06,16.3145]
[1725663578718,15.0499,125.14,125.09,12.54759028]
[1725663579805,45.0,125.13,125.09,12.54759028]
[1725663582899,45.0,125.13,125.06,22.9123]
[1725663583107,45.0,125.13,125.08,12.54759028]
[1725663584032,379.9,125.15,125.08,12.54759028]
[1725663585225,1.99858133,125.14,125.08,12.54759028]
[1725663585737,46.99858133,125.14,125.08,12.54759028]
[1725663588325,45.0,125.14,125.08,12.54759028]
[1725663589841,46.99860928,125.14,125.06,22.9123]
[1725663590422,46.99860928,125.14,125.06,16.3145]
[1725663591208,46.99860928,125.14,125.05,12.54759028]
[1725663591522,40.45,125.13,125.04,12.54759028]
[1725663591827,53.00783738,125.12,125.04,12.54759028]
[1725663592020,77.09783738,125.12,125.0,23.12350668]
[1725663592227,77.09783738,125.12,125.01,12.54759028]
[1725663592228,40.45,125.11,125.01,12.54759028]
[1725663592430,1.99986392,125.1,125.0,15.8487]
[1725663592627,1.99987395,125.09,125.0,15.8487]
[1725663592831,46.99987395,125.09,125.0,15.8487]
[1725663593402,71.08987395,125.09,125.0,15.8487]
[1725663595310,71.08987395,125.09,125.01,12.54759028]
[1725663598328,6.0084,125.08,125.01,12.54759028]
[1725663598525,46.99990439,125.07,125.01,12.54759028]
[1725663598735,1.99990439,125.06,125.01,12.54759028]
[1725663600535,46.99987711,125.07,125.01,12.54759028]
[1725663600718,1.9998605,125.06,125.01,12.54759028]
[1725663601036,1.9998605,125.06,125.0,15.8487]
[1725663601249,18.3598605,125.06,124.97,16.79925529]
[1725663601538,45.0,125.05,124.97,7.27480668]
[1725663601744,2.00043918,125.04,124.96,28.39629028]
[1725663603132,26.09043918,125.04,124.98,12.54759028]
[1725663603337,45.0,125.03,124.98,12.54759028]
[1725663603528,16.36,125.06,124.96,25.37314861]
[1725663603529,2.00005802,125.05,124.99,9.52444861]
[1725663603735,45.0,125.05,125.0,12.54759028]
[1725663604039,2.00001665,125.04,125.0,12.54759028]
[1725663604239,45.0,125.04,125.0,12.54759028]
[1725663604746,45.0,125.05,125.0,12.54759028]
[1725663606037,18.36001665,125.06,125.0,12.54759028]
[1725663606223,6.0084,125.08,125.02,12.54759028]
[1725663606224,8.00844267,125.08,125.02,12.54759028]
[1725663607329,45.0,125.07,125.02,12.54759028]
[1725663608124,1.99970406,125.06,125.02,12.54759028]
[1725663608329,395.5075,125.09,125.02,12.54759028]
[1725663608527,379.9,125.09,125.06,12.54759028]
[1725663608842,6.4694,125.11,125.06,12.54759028]
[1725663609044,1.9990337,125.12,125.06,12.54759028]
[1725663609347,15.6075,125.13,125.06,12.54759028]
[1725663609547,15.6075,125.13,125.08,12.54759028]
[1725663609845,395.5075,125.17,125.1,12.54759028]
[1725663610139,1.99839133,125.16,125.1,12.54759028]
[1725663610756,1.99839166,125.15,125.1,12.54759028]
[1725663611421,6.4694,125.18,125.07,15.1046]
[1725663611626,6.4694,125.18,125.12,12.54759028]
[1725663611931,8.46754534,125.18,125.12,12.54759028]
[1725663612532,8.46754534,125.18,125.07,24.62904861]
[1725663612745,8.46754534,125.18,125.09,12.54759028]
[1725663613323,45.0,125.17,125.09,12.54759028]
[1725663613523,1.9983921,125.16,125.09,12.54759028]
[1725663613741,1.99839228,125.15,125.09,12.54759028]
[1725663614344,1.99839228,125.15,125.07,15.1046]
[1725663614542,45.0,125.17,125.08,9.52444861]
[1725663614725,46.99856036,125.17,125.09,12.54759028]
[1725663618333,71.08856036,125.17,125.07,15.1046]
[1725663618527,24.09,125.15,125.05,7.27480668]
[1725663618751,6.4694,125.13,125.03,27.65219028]
[1725663618932,46.99945843,125.12,125.03,27.65219028]
[1725663619443,46.99945843,125.12,125.05,12.54759028]
[1725663622643,46.99945843,125.12,125.03,15.1046]
[1725663622832,46.99945843,125.12,125.05,12.54759028]
[1725663623854,45.0,125.12,125.05,12.54759028]
[1725663624058,46.99895429,125.12,125.05,12.54759028]
[1725663624850,45.0,125.12,125.07,12.54759028]
[1725663625037,15.6075,125.16,125.11,12.54759028]
[1725663625240,6.6416,125.17,125.11,12.54759028]
[1725663625440,8.639853,125.17,125.11,12.54759028]
[1725663625757,32.729853,125.17,125.09,28.08419028]
[1725663625952,32.729853,125.17,125.09,12.54759028]
[1725663626346,8.639853,125.17,125.09,12.54759028]
[1725663627257,1.998253,125.17,125.11,12.54759028]
[1725663627447,1.99827162,125.16,125.11,12.54759028]
[1725663627652,15.7613,125.19,125.11,12.54759028]
[1725663627653,1.99827509,125.15,125.11,12.54759028]
[1725663628036,1.99827509,125.15,125.09,31.30149467]
[1725663628329,1.99827509,125.15,125.06,22.1987]
[1725663628848,30.7316,125.14,125.06,22.1987]
[1725663629048,30.7316,125.14,125.03,53.50019467]
[1725663629049,86.85033931,125.13,125.03,53.50019467]
[1725663629233,1.99917211,125.12,125.03,53.50019467]
[1725663630938,1.99917211,125.12,125.01,48.10074996]
[1725663631139,1.99917211,125.12,125.03,31.30149467]
[1725663635734,17.76051001,125.13,125.05,31.30149467]
[1725663635960,1.99878,125.12,125.02,20.0]
[1725663636149,1.99878,125.12,125.05,31.30149467]
[1725663637152,46.99878,125.12,125.05,31.30149467]
[1725663637550,71.08878,125.12,125.05,31.30149467]
[1725663638362,45.0,125.12,125.05,31.30149467]
[1725663638670,46.99884143,125.12,125.01,9.52444861]
[1725663638964,46.99884143,125.12,125.04,31.30149467]
[1725663640250,45.0,125.12,125.04,31.30149467]
[1725663640642,46.99889843,125.12,125.04,31.30149467]
[1725663641638,45.0,125.12,125.04,31.30149467]
[1725663641854,45.0,125.12,125.06,31.30149467]
[1725663642144,15.7613,125.13,125.06,31.30149467]
[1725663644770,15.7613,125.13,125.08,31.30149467]
[1725663644981,6.6416,125.14,125.08,31.30149467]
[1725663646065,1.9984002,125.13,125.08,31.30149467]
[1725663646245,6.6416,125.14,125.08,31.30149467]
[1725663647572,16.6476,125.16,125.1,31.30149467]
[1725663648073,16.6476,125.16,125.11,12.51899857]
[1725663648648,18.64581252,125.16,125.11,12.51899857]
[1725663649867,16.6476,125.16,125.11,12.51899857]
[1725663650067,1.99821267,125.17,125.11,12.51899857]
[1725663650578,46.99821267,125.17,125.11,12.51899857]
[1725663654862,45.0,125.17,125.11,12.51899857]
[1725663655785,39.7375614,125.16,125.11,1.99e-06]
[1725663656589,39.7375614,125.16,125.11,4.57e-06]
[1725663656975,39.98942369,125.14,125.11,4.57e-06]
[1725663657677,39.0136151,125.15,125.11,4.57e-06]
[1725663658058,39.64914794,125.13,125.06,6.3783]
[1725663658262,39.64914794,125.13,125.08,12.51899857]
[1725663658459,39.64914794,125.13,125.07,12.51899857]
[1725663658677,18.64617073,125.14,125.07,12.51899857]
[1725663658678,39.74159762,125.11,125.07,12.51899857]
[1725663658864,39.71452797,125.12,125.07,12.51899857]
[1725663660982,16.6476,125.1,125.01,8.19769042]
[1725663661179,24.09,125.07,124.99,12.51899857]
[1725663661388,2.00001553,125.06,124.98,12.51899857]
[1725663661568,24.09,125.05,124.96,6.3783]
[1725663661769,24.09,125.05,124.79,59.33055192]
[1725663661770,40.7376,125.03,124.92,8.19769042]
[1725663661965,40.7376,125.03,124.93,31.38206366]
[1725663661966,2.00059259,125.02,124.93,31.38206366]
[1725663662159,2.00059234,125.01,124.93,31.38206366]
[1725663663588,45.0,125.02,124.93,31.38206366]
[1725663663883,47.00059264,125.02,124.93,31.38206366]
[1725663666585,2.00059096,125.01,124.95,31.38206366]
[1725663666788,8.04799096,125.01,124.88,21.7750766]
[1725663667085,45.0,125.0,124.9,31.3971323]
[1725663667389,2.00115376,124.99,124.9,31.3971323]
[1725663667569,2.00120389,124.98,124.9,31.3971323]
[1725663668469,16.5127,124.97,124.9,31.3971323]
[1725663668786,2.00120295,124.96,124.9,31.3971323]
[1725663670897,18.51393004,124.97,124.85,16.4234]
[1725663671184,45.0,124.96,124.87,31.3971323]
[1725663671688,16.5127,124.97,124.91,31.3971323]
[1725663673387,16.5127,125.0,124.95,31.3971323]
[1725663673573,16.5127,125.0,124.97,31.3971323]
[1725663674088,16.5127,125.0,124.95,31.3971323]
[1725663676599,18.51301049,125.0,124.95,31.3971323]
[1725663676891,16.5127,125.0,124.95,31.3971323]
[1725663677394,18.51309762,125.0,124.95,31.3971323]
[1725663678184,16.5127,125.0,124.95,31.3971323]
[1725663678388,6.0474,125.01,124.95,31.3971323]
[1725663680391,8.04773414,125.01,124.95,31.3971323]
[1725663680897,6.0474,125.01,124.95,31.3971323]
[1725663682091,16.5127,125.03,124.99,31.3971323]
[1725663686876,6.0474,125.04,124.99,31.3971323]
[1725663687196,16.182,125.06,125.01,31.3971323]
[1725663687897,16.182,125.06,125.03,31.3971323]
[1725663688069,22.7732,125.1,125.05,31.3971323]
[1725663688501,39.71452797,125.12,125.07,31.3971323]
[1725663690293,39.71452797,125.12,125.09,31.3971323]
[1725663694179,46.24034794,125.13,125.09,31.3971323]
[1725663694900,39.64914794,125.13,125.09,31.3971323]
[1725663702896,39.64914794,125.13,125.07,31.3971323]
[1725663706600,39.64914794,125.13,125.09,31.3971323]
[1725663707906,39.64914794,125.13,125.09,23.87486388]
[1725663708108,39.64914794,125.13,125.04,15.7408]
[1725663708318,39.64914794,125.13,125.07,31.3971323]
[1725663709597,39.64914794,125.13,125.09,31.3971323]
[1725663714193,1.99813591,125.12,125.04,15.7408]
[1725663714506,1.99813591,125.12,125.06,31.3971323]
[1725663715505,41.64765036,125.13,125.06,31.3971323]
[1725663715921,39.64914794,125.13,125.06,31.3971323]
[1725663716298,39.64914794,125.13,125.08,31.3971323]
[1725663716605,56.17142369,125.14,125.07,45.0]
[1725663716818,56.17142369,125.14,125.1,31.3971323]
[1725663717606,39.0136151,125.15,125.12,31.3971323]
[1725663717808,39.7375614,125.16,125.12,31.3971323]
[1725663718728,39.43445527,125.18,125.15,4.32e-06]
[1725663719333,39.74112203,125.19,125.15,4.32e-06]
[1725663719528,39.74112203,125.19,125.13,45.0]
[1725663719529,39.74112203,125.19,125.17,4.32e-06]
[1725663726320,39.74112203,125.19,125.15,31.3971323]
[1725663726513,41.43171374,125.18,125.11,31.3971323]
[1725663726716,6.239,125.17,125.09,31.3971323]
[1725663726930,1.99797824,125.16,125.09,31.3971323]
[1725663727123,1.99799961,125.15,125.09,31.3971323]
[1725663727637,8.23686974,125.17,125.09,31.3971323]
[1725663728409,6.239,125.17,125.09,31.3971323]
[1725663730211,39.7375614,125.16,125.09,31.3971323]
[1725663731111,41.73518831,125.16,125.09,31.3971323]
[1725663731310,39.7375614,125.16,125.09,31.3971323]
[1725663732313,39.7375614,125.16,125.1,45.0]
[1725663733527,39.7375614,125.16,125.11,31.3971323]
[1725663734028,45.28615429,125.17,125.11,31.3971323]
[1725663734229,39.74112203,125.19,125.13,31.3971323]
[1725663735537,39.74112203,125.19,125.15,31.3971323]
[1725663739118,39.74112203,125.19,125.11,31.3971323]
[1725663739324,39.04715429,125.17,125.11,31.3971323]
[1725663740011,39.74112203,125.19,125.11,31.3971323]
[1725663740514,39.04715429,125.17,125.11,31.3971323]
[1725663741634,39.74112203,125.19,125.11,31.3971323]
[1725663743536,39.04715429,125.17,125.08,7.60527993]
[1725663743737,6.5755,125.15,125.07,31.3971323]
[1725663744529,39.04715429,125.17,125.11,31.3971323]
[1725663748356,39.04715429,125.17,125.12,45.0]
[1725663748530,39.04715429,125.17,125.09,47.4490323]
[1725663748717,39.04715429,125.17,125.1,65.0]
[1725663750918,39.04715429,125.17,125.1,20.0]
[1725663751137,39.04715429,125.17,125.09,31.3971323]
[1725663751439,39.04715429,125.17,125.1,45.0]
[1725663752332,41.04481622,125.17,125.1,45.0]
[1725663752538,39.04715429,125.17,125.09,31.3971323]
[1725663753038,6.5755,125.14,125.05,31.3971323]
[1725663753348,6.5755,125.14,125.03,16.0519]
[1725663753349,1.99834567,125.13,125.03,47.4490323]
[1725663753638,1.99858257,125.12,125.03,47.4490323]
[1725663754335,8.57407608,125.14,125.03,47.4490323]
[1725663754531,8.57407608,125.14,125.04,20.0]
[1725663754532,6.5755,125.14,125.04,20.0]
[1725663754846,6.5755,125.14,125.05,31.3971323]
[1725663755026,6.5755,125.14,125.06,20.0]
[1725663760133,8.57409572,125.14,125.06,20.0]
[1725663760320,16.3249,125.13,125.02,37.6914323]
[1725663760646,16.3249,125.13,125.03,20.0]
[1725663760840,16.3249,125.13,125.04,31.3971323]
[1725663761037,16.3249,125.13,125.05,20.0]
[1725663762823,16.3249,125.13,125.06,76.3971323]
[1725663765844,16.3249,125.13,125.08,31.3971323]
[1725663766144,16.3249,125.13,125.06,45.0]
[1725663766145,16.3249,125.13,125.1,31.3971323]
[1725663766853,16.3249,125.13,125.08,31.3971323]
[1725663769750,39.7375614,125.16,125.1,31.3971323]
[1725663769937,39.7375614,125.16,125.06,45.0]
[1725663769938,39.7375614,125.16,125.08,31.3971323]
[1725663770130,15.2399,125.15,125.06,76.3971323]
[1725663770331,15.2399,125.15,125.07,20.0]
[1725663771051,1.99808706,125.14,125.07,20.0]
[1725663771247,1.99808706,125.14,125.04,31.3971323]
[1725663771248,17.238413,125.13,125.04,31.3971323]
[1725663771450,6.2443,125.11,125.02,31.3971323]
[1725663773757,6.2443,125.11,125.03,65.0]
[1725663776459,15.2399,125.1,125.03,20.0]
[1725663778941,15.2399,125.1,125.04,76.3971323]
[1725663779565,15.2399,125.1,125.06,31.3971323]
[1725663780055,15.2399,125.1,125.04,76.3971323]
[1725663781451,15.2399,125.1,125.04,45.0]
[1725663781761,17.23873928,125.1,125.03,20.0]
[1725663783072,17.23873928,125.1,125.02,31.3971323]
[1725663783073,1.99878559,125.09,125.02,31.3971323]
[1725663783435,21.3312,125.08,125.0,31.3971323]
[1725663783637,21.3312,125.08,125.01,20.0]
[1725663785891,21.3312,125.08,125.02,76.3971323]
[1725663787169,21.3312,125.08,125.04,31.3971323]
[1725663787854,21.3312,125.08,125.02,76.3971323]
[1725663790875,57.48619666,125.15,125.06,31.3971323]
[1725663790876,15.057,125.11,125.06,31.3971323]
[1725663793879,15.057,125.11,125.07,45.0]
[1725663794247,15.057,125.11,125.06,31.3971323]
[1725663794675,15.057,125.11,125.07,45.0]
[1725663795479,15.057,125.11,125.06,31.3971323]
[1725663796977,15.057,125.11,125.07,45.0]
[1725663798776,15.057,125.11,125.08,31.3971323]
[1725663799151,15.057,125.14,125.08,31.3971323]
[1725663799361,15.057,125.14,125.1,31.3971323]
[1725663799647,15.057,125.14,125.09,45.0]
[1725663799853,15.057,125.14,125.08,31.3971323]
[1725663800072,15.057,125.14,125.1,12.51907084]
[1725663801975,15.057,125.14,125.09,20.0]
[1725663802455,15.057,125.14,125.08,31.29743186]
[1725663809484,15.057,125.14,125.1,31.29743186]
[1725663810184,21.7679,125.18,125.12,31.29743186]
[1725663814872,15.7542,125.18,125.14,31.29743186]
[1725663819274,39.07763897,125.2,125.15,45.0]
[1725663820196,61.37379079,125.21,125.16,10.54945019]
[1725663820390,15.7542,125.21,125.18,29.54517841]
[1725663822082,15.7542,125.21,125.19,12.50008196]
[1725663822999,39.48447566,125.23,125.19,12.50008196]
[1725663823297,39.48447566,125.23,125.21,4.44e-06]
[1725663823793,61.38950415,125.24,125.21,4.44e-06]
[1725663825000,55.37580415,125.24,125.21,4.44e-06]
[1725663827402,39.66402196,125.26,125.21,4.44e-06]
[1725663828585,41.65998749,125.26,125.19,12.50008196]
[1725663828792,41.66031183,125.26,125.19,12.50008196]
[1725663830398,39.73270415,125.24,125.14,34.17104544]
[1725663830599,47.57929176,125.23,125.14,7.05565465]
[1725663830787,15.6431,125.22,125.14,19.55573661]
[1725663830987,15.6431,125.22,125.16,12.50008196]
[1725663831202,55.62400709,125.22,125.16,12.50008196]
[1725663831788,55.62400709,125.22,125.18,12.50008196]
[1725663832100,270.3,125.32,125.19,31.2435488]
[1725663832101,39.73270415,125.24,125.19,31.2435488]
[1725663838016,39.73270415,125.24,125.21,4.15e-06]
[1725663839814,6.098,125.27,125.21,4.15e-06]
[1725663840818,15.6431,125.28,125.25,31.2435488]
[1725663841320,15.6431,125.28,125.21,31.2435488]
[1725663841514,15.6431,125.28,125.22,20.0]
[1725663842393,15.6431,125.28,125.21,31.2435488]
[1725663842602,15.6431,125.28,125.19,31.2435488]
[1725663843821,15.6431,125.28,125.19,38.94324029]
[1725663844213,15.6431,125.28,125.2,20.0]
[1725663844595,45.0,125.27,125.2,20.0]
[1725663844910,1.99614677,125.26,125.19,38.94324029]
[1725663845114,15.6431,125.28,125.21,31.2435488]
[1725663851899,15.6431,125.28,125.2,3.1623954]
[1725663852106,15.6431,125.28,125.23,12.49290137]
[1725663853014,15.6431,125.28,125.19,3.09716575]
[1725663853199,46.99578657,125.27,125.2,12.49290137]
[1725663853401,6.1704,125.25,125.2,12.49290137]
[1725663854115,15.6045,125.24,125.17,31.25275617]
[1725663854305,15.6045,125.24,125.18,20.0]
[1725663855598,15.6045,125.24,125.19,31.25275617]
[1725663855895,15.6045,125.24,125.19,6.17617317]
[1725663860122,15.6045,125.27,125.21,31.25275617]
[1725663861420,15.6045,125.27,125.23,31.25275617]
[1725663861608,15.6045,125.31,125.23,31.25275617]
[1725663861920,15.6045,125.31,125.25,31.25275617]
[1725663864902,45.0,125.3,125.23,31.25275617]
[1725663865402,15.6045,125.31,125.23,31.25275617]
[1725663866127,15.6045,125.31,125.25,31.25275617]
[1725663868827,15.6045,125.31,125.27,31.25275617]
[1725663869004,22.6815,125.38,125.29,31.25275617]
[1725663869533,1.99470353,125.37,125.29,31.25275617]
[1725663870317,22.6815,125.38,125.29,31.25275617]
[1725663870519,1.99465267,125.37,125.29,31.25275617]
[1725663871827,46.99465267,125.37,125.29,31.25275617]
[1725663873125,46.99465267,125.37,125.25,19.54682159]
[1725663873126,16.1489,125.34,125.25,31.25275617]
[1725663873309,16.1489,125.34,125.23,31.25275617]
[1725663873310,53.52808832,125.33,125.23,31.25275617]
[1725663873508,16.1489,125.32,125.24,20.0]
[1725663873724,45.0,125.31,125.24,20.0]
[1725663877824,16.1489,125.32,125.25,31.25275617]
[1725663882014,16.1489,125.32,125.27,31.25275617]
[1725663884132,16.1489,125.32,125.27,12.48418656]
[1725663885535,16.1489,125.32,125.27,11.98418656]
[1725663888114,16.1489,125.32,125.24,20.0]
[1725663888315,1.99515934,125.31,125.22,7.69969149]
[1725663888523,16.089,125.29,125.2,12.48418656]
[1725663888726,57.48418656,125.28,125.2,12.48418656]
[1725663888921,6.4671,125.26,125.2,12.48418656]
[1725663889125,8.46342932,125.26,125.2,12.48418656]
[1725663889541,16.089,125.25,125.2,12.48418656]
[1725663890217,16.089,125.25,125.22,12.48418656]
[1725663903448,15.6735,125.28,125.22,12.48418656]
[1725663904542,17.66938633,125.28,125.22,12.48418656]
[1725663904925,17.66938633,125.28,125.19,7.69969149]
[1725663905233,17.66938633,125.28,125.22,12.48418656]
[1725663906149,15.6735,125.28,125.22,12.48418656]
[1725663908849,46.99612953,125.27,125.22,12.48418656]
[1725663909236,1.99614767,125.26,125.22,12.48418656]
[1725663909440,45.0,125.27,125.22,12.48418656]
[1725663909744,46.99614405,125.27,125.22,12.48418656]
[1725663910150,45.0,125.27,125.22,12.48418656]
[1725663912541,46.99613751,125.27,125.22,12.48418656]
[1725663913836,45.0,125.27,125.22,12.48418656]
[1725663914261,46.9961409,125.27,125.22,12.48418656]
[1725663916033,45.0,125.27,125.22,12.48418656]
[1725663916458,15.6735,125.28,125.22,12.48418656]
[1725663916759,15.6735,125.28,125.24,12.48418656]
[1725663918160,15.6735,125.28,125.26,12.48418656]
[1725663920376,15.6735,125.28,125.2,20.0]
[1725663920543,15.6735,125.28,125.21,32.48418656]
[1725663920866,1.9961829,125.27,125.21,12.48418656]
[1725663921539,1.99619341,125.26,125.21,12.48418656]
[1725663921745,17.66962798,125.28,125.21,12.48418656]
[1725663921971,17.66962798,125.28,125.17,19.10695958]
[1725663921972,21.7635,125.26,125.17,3.09405958]
[1725663922147,46.99678922,125.25,125.17,12.48418656]
[1725663924147,45.0,125.25,125.19,12.48418656]
[1725663924574,46.99658819,125.25,125.19,12.48418656]
[1725663925371,46.99658819,125.25,125.17,7.69969149]
[1725663925667,21.9419,125.24,125.17,12.48418656]
[1725663925845,45.0,125.23,125.17,12.48418656]
[1725663926537,45.0,125.23,125.14,7.69969149]
[1725663926737,45.0,125.23,125.17,12.48418656]
[1725663926963,15.3243,125.21,125.14,7.69969149]
[1725663927142,1.99715682,125.2,125.15,12.48418656]
[1725663927349,15.3243,125.21,125.15,12.48418656]
[1725663934270,53.6149807,125.2,125.15,12.48418656]
[1725663935849,53.6149807,125.2,125.12,3.07037394]
[1725663936152,27.80848656,125.19,125.1,12.48418656]
[1725663936354,46.99790139,125.18,125.1,12.48418656]
[1725663936554,46.99790139,125.18,125.07,33.34784959]
[1725663936555,19.10178656,125.17,125.07,10.82444959]
[1725663936757,6.6176,125.14,125.06,12.48418656]
[1725663936979,15.3243,125.12,125.03,7.69969149]
[1725663937180,6.6176,125.1,125.02,1.39238177]
[1725663937484,1.99930564,125.09,125.02,12.48418656]
[1725663937648,46.99930564,125.09,125.02,12.48418656]
[1725663937850,46.99930564,125.09,124.98,1.3925612]
[1725663937851,15.3243,125.08,124.98,1.3925612]
[1725663938051,15.3243,125.08,125.0,31.35078648]
[1725663938253,15.3243,125.08,125.02,31.35078648]
[1725663940177,15.3243,125.08,125.04,31.35078648]
[1725663946567,6.6176,125.1,125.02,7.69969149]
[1725663946568,6.6176,125.1,125.06,31.35078648]
[1725663947988,6.6176,125.1,125.04,31.35078648]
[1725663953260,6.6176,125.1,125.06,31.35078648]
[1725663954884,6.6176,125.1,125.04,31.35078648]
[1725663958711,6.6176,125.1,125.06,31.35078648]
[1725663960687,6.6176,125.1,125.05,31.35078648]
[1725663963602,8.61634393,125.1,125.05,31.35078648]
[1725663963794,6.6176,125.1,125.05,31.35078648]
[1725663966109,6.6176,125.1,125.07,31.35078648]
[1725663968691,15.292,125.11,125.07,31.35078648]
[1725663968881,6.654,125.14,125.09,31.35078648]
[1725663969088,6.654,125.14,125.05,7.69969149]
[1725663969089,22.1186,125.14,125.05,7.69969149]
[1725663969312,22.1186,125.14,125.11,31.35078648]
[1725663969605,6.654,125.17,125.13,31.35078648]
[1725663970011,6.654,125.17,125.16,12.5074816]
[1725663970899,22.1186,125.21,125.16,12.5074816]
[1725663971091,22.1186,125.21,125.18,12.5074816]
[1725663971905,22.1186,125.21,125.17,31.25480686]
[1725663975102,22.1186,125.21,125.15,31.25480686]
[1725663975606,1.99701036,125.2,125.11,31.25480686]
[1725663975823,46.99701036,125.2,125.11,31.25480686]
[1725663976107,45.0,125.2,125.11,31.25480686]
[1725663976311,45.0,125.2,125.09,7.69969149]
[1725663976312,45.0,125.2,125.13,31.25480686]
[1725663976610,1.99746256,125.19,125.13,31.25480686]
[1725663976811,45.0,125.2,125.13,31.25480686]
[1725663978497,46.99747442,125.2,125.13,31.25480686]
[1725663979013,45.0,125.2,125.13,31.25480686]
[1725663980417,46.99747291,125.2,125.13,31.25480686]
[1725663981216,46.99747291,125.2,125.09,7.69969149]
[1725663981412,46.99747291,125.2,125.11,31.25480686]
[1725663981613,46.99747291,125.2,125.12,20.0]
[1725663983815,46.99747291,125.2,125.11,31.25480686]
[1725663989110,22.1186,125.21,125.13,31.25480686]
[1725663990598,45.0,125.2,125.13,31.25480686]
[1725663991415,22.1186,125.21,125.15,31.25480686]
[1725663994419,15.4646,125.21,125.17,31.25480686]
[1725663994621,21.5621,125.25,125.19,31.25480686]
[1725663996001,21.5621,125.25,125.17,31.25480686]
[1725663996209,45.0,125.24,125.17,31.25480686]
[1725663996421,21.5621,125.25,125.17,31.25480686]
[1725663997105,21.3510316,125.25,125.17,31.25480686]
[1725664003044,21.3510316,125.25,125.19,31.25480686]
[1725664004933,1.99658059,125.24,125.19,31.25480686]
[1725664005128,1.99674874,125.23,125.17,31.25480686]
[1725664005927,1.99674874,125.23,125.19,12.50111093]
[1725664006130,1.99672567,125.24,125.19,12.50111093]
[1725664006325,1.99672568,125.23,125.19,12.50111093]
[1725664007028,1.99672568,125.23,125.12,55.60523441]
[1725664007341,21.3510316,125.25,125.19,12.50111093]
[1725664009026,1.99658579,125.24,125.19,12.50111093]
[1725664009423,21.3510316,125.25,125.19,12.50111093]
[1725664010129,1.99658198,125.24,125.19,12.50111093]
[1725664010536,1.99658597,125.23,125.19,12.50111093]
[1725664010910,21.3510316,125.25,125.21,12.50111093]
[1725664011119,15.0126,125.25,125.23,12.50111093]
[1725664014526,15.0126,125.25,125.18,16.6195]
[1725664014735,15.0126,125.25,125.22,12.50111093]
[1725664019842,15.0126,125.25,125.17,7.69969149]
[1725664020032,53.63642155,125.24,125.15,12.50111093]
[1725664020250,15.3789,125.22,125.14,12.50111093]
[1725664020426,15.3789,125.19,125.1,18.010321]
[1725664020622,1.99807578,125.18,125.11,12.50111093]
[1725664020834,12.50111093,125.17,125.1,16.6195]
[1725664021035,45.0,125.16,125.06,9.9569289]
[1725664021251,1.99809131,125.16,125.1,21.0717302]